bitfinex-derivatives/quotes_ETHF0:USTF0_20251229
["timestamp","ask_amount","ask_price","bid_price","bid_amount"]
[1767021869701,40.86298497,2939.4,2936.6,1.94954393]
[1767021869996,0.00373968,2939.4,2937.1,1.9463749]
[1767021870202,0.00507687,2938.5,2938.0,0.00510647]
[1767021871497,0.00507687,2938.5,2936.6,0.00316903]
[1767021871695,0.00507687,2938.5,2936.7,4.705]
[1767021871895,0.00507687,2938.5,2936.7,9.09783428]
[1767021872395,0.00507687,2938.5,2936.7,4.39283428]
[1767021872593,0.17034,2938.4,2936.6,0.00316903]
[1767021872798,0.17034,2938.4,2936.6,1.49016903]
[1767021873693,0.17034,2938.4,2937.2,0.00510647]
[1767021873993,0.00507687,2938.5,2937.2,0.00510647]
[1767021874500,0.17541687,2938.5,2937.2,0.00510647]
[1767021875702,0.17034,2938.4,2937.2,0.00510647]
[1767021879505,0.17035,2938.3,2937.2,0.00510647]
[1767021880996,0.00507687,2938.5,2937.2,0.00510647]
[1767021881203,0.17038,2937.8,2936.6,0.00316903]
[1767021882095,0.17038,2937.8,2936.9,0.00510647]
[1767021886305,0.00507687,2938.5,2936.9,0.00510647]
[1767021886802,0.17035,2938.2,2936.9,0.00510647]
[1767021887492,0.00507687,2938.5,2936.9,0.00510647]
[1767021887697,0.03,2940.0,2936.9,0.00510647]
[1767021887899,0.17029,2939.2,2937.2,0.17041]
[1767021888212,0.17029,2939.2,2937.3,2.637]
[1767021888702,6.47e-06,2938.5,2937.3,7.23461585]
[1767021888903,0.17029,2939.2,2937.3,7.23461585]
[1767021889399,0.17026,2939.8,2937.4,0.1704]
[1767021889603,0.17026,2939.8,2937.6,0.17038]
[1767021889800,0.00510647,2938.8,2937.6,0.17038]
[1767021890404,0.00510647,2938.8,2937.7,4.7]
[1767021892406,0.00510647,2938.8,2937.6,0.17038]
[1767021892607,0.00510647,2938.8,2937.6,4.7]
[1767021892809,0.00510647,2938.8,2936.9,0.17553647]
[1767021893108,0.00510647,2938.8,2937.0,4.699]
[1767021893809,0.00510647,2938.8,2936.9,0.17553647]
[1767021894011,0.00510647,2938.8,2937.0,4.699]
[1767021895210,0.00510647,2938.8,2937.0,4.86942]
[1767021895410,0.00510647,2938.8,2937.1,4.36203262]
[1767021895611,0.17027,2939.7,2937.7,0.17038]
[1767021895913,0.03,2940.0,2937.9,0.17037]
[1767021896112,0.03,2940.0,2938.0,4.86936]
[1767021896311,0.03,2940.0,2938.0,9.23139262]
[1767021896509,0.00510647,2939.0,2938.4,0.00510647]
[1767021896711,0.03,2940.0,2938.4,0.00510647]
[1767021897011,0.03,2940.0,2938.5,4.699]
[1767021897307,3.968e-05,2939.4,2938.6,4.699]
[1767021897512,0.03,2940.0,2938.6,4.699]
[1767021898009,0.03,2940.0,2938.4,0.00510647]
[1767021898209,0.03,2940.0,2938.5,4.698]
[1767021898413,0.03325081,2940.0,2938.6,4.32583564]
[1767021898911,0.03325081,2940.0,2938.5,4.97641317]
[1767021899112,0.03325081,2940.0,2938.7,4.32583564]
[1767021899312,0.92250476,2940.8,2938.7,0.00270744]
[1767021899711,0.92250476,2940.8,2938.8,4.4134667]
[1767021900313,0.92692131,2940.8,2938.8,4.4134667]
[1767021900617,0.17022,2940.6,2938.9,4.699]
[1767021900816,0.17022,2940.6,2938.7,0.00270744]
[1767021901317,0.17025,2940.0,2938.7,0.00270744]
[1767021901912,0.17026,2939.8,2938.4,0.00510647]
[1767021903014,0.17026,2939.8,2938.4,0.00879472]
[1767021905816,47.131,2940.7,2938.4,0.00879472]
[1767021906020,2.20448737,2940.2,2936.9,0.17042]
[1767021906322,0.17028,2939.5,2937.0,0.17842]
[1767021906620,6.331,2940.1,2937.1,4.47033011]
[1767021906819,0.17029,2939.3,2937.0,0.17842]
[1767021907017,0.00510647,2938.4,2937.9,0.00510647]
[1767021907219,0.00913089,2938.4,2937.9,0.00510647]
[1767021908018,0.17029,2939.3,2937.9,0.00510647]
[1767021909122,0.17418558,2939.3,2937.9,0.00510647]
[1767021914518,0.17418558,2939.3,2937.9,4.70310647]
[1767021915717,0.00389558,2939.3,2937.9,4.70310647]
[1767021915912,0.00389558,2939.3,2938.0,4.38711885]
[1767021916724,0.00389558,2939.3,2938.0,4.55747885]
[1767021918615,0.00389558,2939.3,2938.0,0.17036]
[1767021918815,0.00389558,2939.3,2937.9,0.00510647]
[1767021919226,0.00389558,2939.3,2938.0,4.698]
[1767021920017,0.00389558,2939.3,2937.9,0.00510647]
[1767021920320,0.00389558,2939.3,2937.9,4.70310647]
[1767021920523,0.00389558,2939.3,2937.9,4.87346647]
[1767021921321,0.00389558,2939.3,2937.9,0.17546647]
[1767021921626,0.00389558,2939.3,2938.0,4.698]
[1767021923922,0.00389558,2939.3,2937.9,3.05242308]
[1767021924121,0.00389558,2939.3,2937.9,0.00510647]
[1767021924322,0.00389558,2939.3,2937.3,4.699]
[1767021924526,0.17032,2938.7,2937.3,4.699]
[1767021925416,0.00510647,2938.3,2937.7,0.00510647]
[1767021926127,0.00389558,2939.3,2937.7,0.00510647]
[1767021926325,0.00389558,2939.3,2937.9,3.04731661]
[1767021926514,0.00389558,2939.3,2938.0,4.699]
[1767021927122,0.00389558,2939.3,2937.9,3.04731661]
[1767021927325,0.00389558,2939.3,2938.0,4.699]
[1767021927826,0.00389558,2939.3,2938.0,7.74631661]
[1767021928920,0.00389558,2939.3,2937.9,3.04731661]
[1767021929120,0.00389558,2939.3,2938.0,4.7]
[1767021929731,6.331,2940.7,2938.0,4.7]
[1767021929925,0.17022,2940.5,2938.1,4.48936475]
[1767021930721,0.17292493,2940.5,2938.2,4.701]
[1767021931121,0.17292493,2940.5,2938.3,4.37179063]
[1767021931922,0.00270493,2940.5,2938.3,4.37179063]
[1767021932122,0.00270493,2940.5,2938.7,3.04731661]
[1767021932427,0.00270493,2940.5,2939.3,0.00510647]
[1767021932730,0.00270493,2940.5,2939.4,4.701]
[1767021935225,0.00270493,2940.5,2939.3,0.00752726]
[1767021935435,0.00270493,2940.5,2939.5,4.7]
[1767021936329,0.00270493,2940.5,2939.3,0.00752726]
[1767021936528,0.00270493,2940.5,2939.4,4.7]
[1767021939934,0.75230476,2940.8,2939.4,4.7]
[1767021939935,0.75230476,2940.8,2939.4,5.1482822]
[1767021940129,0.17016,2941.6,2939.6,0.17027]
[1767021940331,0.17016,2941.5,2939.7,4.701]
[1767021940637,0.17016,2941.5,2939.6,0.17027]
[1767021940638,0.17016,2941.5,2939.8,4.701]
[1767021940932,0.17016,2941.5,2939.6,0.17027]
[1767021941138,0.0027165,2941.5,2939.3,0.00752726]
[1767021941327,0.0027165,2941.5,2939.4,3.923]
[1767021941526,0.0027165,2941.5,2939.5,4.44745433]
[1767021941728,0.1728765,2941.5,2939.6,4.701]
[1767021942845,0.0027165,2941.5,2939.6,4.701]
[1767021943025,0.0027165,2941.5,2939.6,4.87127]
[1767021944439,0.0027165,2941.5,2939.7,4.49446927]
[1767021944638,0.0027165,2941.5,2939.8,0.17026]
[1767021945038,0.0027165,2941.5,2939.9,4.39566959]
[1767021945636,0.0027165,2941.5,2939.9,4.56591959]
[1767021945832,0.0027165,2941.5,2940.1,0.17024]
[1767021948046,0.0027165,2941.5,2939.4,0.17028]
[1767021948435,0.0027165,2941.5,2939.5,4.701]
[1767021948835,0.0027165,2941.5,2939.6,4.701]
[1767021949236,0.0027165,2941.5,2939.6,4.87127]
[1767021949544,0.0027165,2941.5,2939.7,4.57539085]
[1767021949944,0.0027165,2941.5,2939.9,0.17025]
[1767021950446,0.0027165,2941.5,2940.0,4.36706419]
[1767021950843,0.0027165,2941.5,2940.1,4.701]
[1767021951041,0.0027165,2941.5,2940.2,4.701]
[1767021951241,0.0027165,2941.5,2939.9,0.17025]
[1767021951438,0.0027165,2941.5,2940.3,4.701]
[1767021957059,0.1701,2942.6,2940.3,4.87123]
[1767021957355,0.1701,2942.6,2941.2,0.00510647]
[1767021957952,0.17268002,2942.6,2941.2,1.65210647]
[1767021958459,0.00258002,2942.6,2941.2,1.65210647]
[1767021958955,0.17006,2943.3,2941.3,4.55065259]
[1767021959256,0.17002,2943.9,2941.4,0.17016]
[1767021959552,0.17002,2943.9,2941.6,0.17015]
[1767021959962,0.17426461,2943.9,2941.7,4.50370328]
[1767021960158,0.00424461,2943.9,2941.7,4.50370328]
[1767021960359,0.00424461,2943.9,2941.9,1.94142945]
[1767021960759,0.00424461,2943.9,2942.5,0.1701]
[1767021961056,0.00424461,2943.9,2942.9,0.00509761]
[1767021961658,0.16997,2944.9,2942.9,0.00509761]
[1767021961859,0.16997,2944.9,2943.0,4.4596605]
[1767021962459,0.16997,2944.9,2943.1,4.698]
[1767021962654,0.00247135,2944.9,2943.1,4.698]
[1767021962855,0.00247135,2944.9,2943.1,4.86807]
[1767021963056,0.00247135,2944.9,2943.4,1.94142945]
[1767021963272,0.00247135,2944.9,2943.4,2.11147945]
[1767021963659,0.00247135,2944.9,2943.5,4.698]
[1767021963859,0.00247135,2944.9,2943.6,4.698]
[1767021964268,0.00247135,2944.9,2943.7,4.698]
[1767021964569,0.00247135,2944.9,2943.7,4.70207271]
[1767021964871,0.00247135,2944.9,2943.7,4.70107271]
[1767021965069,0.00247135,2944.9,2943.7,0.00407271]
[1767021965371,0.00247135,2944.9,2943.7,2.13007271]
[1767021965574,0.00247135,2944.9,2943.7,0.00407271]
[1767021966265,0.74253286,2945.6,2943.7,0.00407271]
[1767021966456,0.74253286,2945.6,2943.8,9.12874469]
[1767021966659,0.74253286,2945.6,2944.4,0.00509761]
[1767021967363,0.74585035,2945.6,2944.4,0.00509761]
[1767021969069,0.74585035,2945.6,2943.7,0.00407271]
[1767021969375,0.16994,2945.3,2943.7,0.00407271]
[1767021970277,0.0050681,2944.8,2944.2,0.00509761]
[1767021971374,0.0050681,2944.8,2943.7,0.00407271]
[1767021972375,0.0050681,2944.8,2944.0,0.00509761]
[1767021972570,0.0050681,2944.8,2943.7,0.00407271]
[1767021972766,0.0050681,2944.8,2942.1,0.17012]
[1767021972968,0.0050681,2944.8,2942.5,2.846]
[1767021973177,40.8,2944.7,2942.5,2.846]
[1767021973768,0.16999,2944.5,2943.3,0.00509761]
[1767021975674,0.16999,2944.5,2942.6,4.694]
[1767021976377,0.0050681,2944.8,2942.8,1.94142945]
[1767021976564,0.0050681,2944.8,2943.5,0.00509761]
[1767021978377,0.0050681,2944.8,2943.6,4.3355637]
[1767021978576,0.0050681,2944.8,2943.5,0.00509761]
[1767021978577,0.0050681,2944.8,2943.7,4.693]
[1767021978779,0.0050681,2944.8,2943.5,0.00509761]
[1767021978986,0.0050681,2944.8,2943.5,4.69809761]
[1767021979371,0.0050681,2944.8,2943.5,0.00509761]
[1767021982077,0.1750381,2944.8,2943.5,0.00509761]
[1767021982284,1.94142945,2944.6,2941.9,9.64951718]
[1767021982580,0.17001,2944.2,2942.4,4.692]
[1767021982778,0.17001,2944.2,2941.9,0.17013]
[1767021983078,0.17001,2944.2,2942.2,4.692]
[1767021983580,0.17001,2944.2,2943.1,0.00509761]
[1767021983977,0.17001,2944.1,2943.1,0.00509761]
[1767021984174,0.17003,2943.9,2941.4,0.12256442]
[1767021984379,0.17003,2943.9,2941.8,2.004]
[1767021984882,1.12905231,2943.8,2941.8,2.27030113]
[1767021985072,0.95907991,2943.7,2941.8,2.27030113]
[1767021985277,0.17005,2943.4,2941.8,0.26630113]
[1767021985477,0.17442268,2943.4,2941.8,0.26630113]
[1767021985671,0.96022709,2943.3,2941.5,4.692]
[1767021985875,0.00437268,2943.4,2941.5,4.692]
[1767021986075,0.00509761,2942.7,2941.0,0.44555332]
[1767021986484,0.00509761,2942.7,2941.1,0.722]
[1767021987280,0.00509761,2942.7,2941.2,4.49369498]
[1767021989883,0.00437268,2943.4,2941.4,0.17016]
[1767021990078,0.00437268,2943.4,2941.5,2.11158945]
[1767021990682,0.00437268,2943.4,2941.5,6.57429627]
[1767021991187,0.00509761,2942.7,2942.2,0.0050976]
[1767021991782,0.00437268,2943.4,2942.2,0.0050976]
[1767021993087,10.375,2944.3,2942.2,0.0050976]
[1767021993686,0.00509761,2943.5,2942.2,0.0050976]
[1767021994086,0.00860709,2943.5,2942.2,0.0050976]
[1767021995187,10.375,2944.3,2942.2,0.1752176]
[1767021995485,0.16999,2944.4,2942.2,0.1752176]
[1767021995685,0.9605061,2944.3,2942.2,0.1752176]
[1767021995885,0.16999,2944.4,2942.2,0.1752176]
[1767021996291,0.00509761,2943.6,2942.2,0.1752176]
[1767021996682,0.00398399,2944.4,2942.3,4.44138151]
[1767021997187,0.00398399,2944.4,2942.6,0.1701]
[1767021997686,0.00509761,2943.8,2942.6,0.1701]
[1767021998393,0.00398399,2944.4,2942.6,0.1701]
[1767021999294,0.00339846,2943.8,2942.6,0.1701]
[1767021999786,0.00339846,2943.8,2942.3,4.44138151]
[1767021999988,0.17342846,2943.8,2942.2,0.0050976]
[1767022004091,0.17004,2943.6,2942.2,0.0050976]
[1767022011201,0.00339846,2943.8,2942.2,0.0050976]
[1767022011403,0.00339846,2943.8,2942.2,0.1752176]
[1767022011794,0.00339846,2943.8,2942.3,4.57929291]
[1767022012195,0.00339846,2943.8,2942.4,0.17011]
[1767022013603,0.00339846,2943.8,2942.5,4.689]
[1767022016297,0.00339846,2943.8,2942.5,4.8591]
[1767022016497,0.00398399,2944.4,2942.6,4.41668297]
[1767022016694,0.00398399,2944.4,2942.9,0.17008]
[1767022018402,0.00398399,2944.4,2943.0,4.51634434]
[1767022019307,0.00398399,2944.4,2942.9,0.17008]
[1767022019910,0.00398399,2944.4,2943.0,4.689]
[1767022021505,0.00398399,2944.4,2943.1,4.688]
[1767022021704,0.00398399,2944.4,2943.1,4.69048607]
[1767022026015,0.00398399,2944.4,2943.2,4.687]
[1767022030420,0.00398399,2944.4,2943.1,4.68848607]
[1767022031114,0.00398399,2944.4,2943.1,0.00248607]
[1767022040721,0.00398399,2944.4,2943.2,4.684]
[1767022041914,0.00398399,2944.4,2943.1,0.00248607]
[1767022042124,0.17001,2944.1,2942.2,4.6890976]
[1767022042319,0.17002,2944.0,2942.2,4.6890976]
[1767022043230,0.17002,2944.0,2942.2,4.6921528]
[1767022048631,0.17002,2944.0,2942.2,0.0081528]
[1767022051036,0.17002,2943.9,2942.2,0.0081528]
[1767022051223,40.80398399,2944.4,2942.2,0.0081528]
[1767022051628,0.17004,2943.7,2942.2,0.0081528]
[1767022054734,46.36998399,2944.4,2942.2,0.0081528]
[1767022054735,0.17,2944.3,2942.2,0.0081528]
[1767022055136,0.17,2944.3,2942.2,0.1782728]
[1767022055333,0.17,2944.3,2942.3,0.17011]
[1767022055533,0.17,2944.3,2942.5,0.1701]
[1767022056436,0.17,2944.3,2942.6,4.37950212]
[1767022058330,0.17001,2944.1,2942.2,0.0081528]
[1767022058728,0.17002,2944.0,2942.2,0.0081528]
[1767022059338,0.17002,2943.9,2942.2,0.0081528]
[1767022063345,0.17003,2943.8,2942.2,0.0081528]
[1767022065433,0.17003,2943.7,2942.2,0.0081528]
[1767022065639,0.17004,2943.6,2942.2,0.0081528]
[1767022073756,0.17001,2944.1,2942.2,0.0081528]
[1767022074251,0.17001,2944.1,2942.3,4.42178439]
[1767022074758,0.10398399,2944.4,2942.4,0.17011]
[1767022075052,0.10398399,2944.4,2942.5,0.1701]
[1767022075252,0.10398399,2944.4,2942.6,6.61696264]
[1767022076548,0.10398399,2944.4,2942.5,0.1701]
[1767022077154,0.27397399,2944.4,2942.5,2.10606264]
[1767022079250,0.27397399,2944.4,2942.5,0.1701]
[1767022079658,0.27397399,2944.4,2942.6,4.68]
[1767022081561,0.27397399,2944.4,2942.6,4.8501]
[1767022084663,0.10398399,2944.4,2942.6,4.68]
[1767022084859,0.10398399,2944.4,2942.9,0.17008]
[1767022085159,0.10398399,2944.4,2943.0,2.10603264]
[1767022085358,0.10398399,2944.4,2943.0,6.58735846]
[1767022085553,0.10398399,2944.4,2943.0,2.10603264]
[1767022086659,0.10398399,2944.4,2943.1,4.48132582]
[1767022087263,0.10398399,2944.4,2943.1,4.65138582]
[1767022088966,0.10398399,2944.4,2943.2,0.17006]
[1767022089552,0.10398399,2944.4,2943.3,0.17006]
[1767022089769,10.54494,2945.3,2943.4,4.682]
[1767022090067,0.16994,2945.3,2944.1,0.00509761]
[1767022090660,0.17242607,2945.3,2944.1,0.00509761]
[1767022091070,0.00248607,2945.3,2944.1,0.00509761]
[1767022091261,0.00248607,2945.3,2944.2,3.941]
[1767022091854,0.00248607,2945.3,2944.1,0.00509761]
[1767022091855,0.00248607,2945.3,2944.1,4.68709761]
[1767022093654,0.22898662,2946.4,2944.2,0.17]
[1767022093655,0.16988,2946.4,2944.2,0.17]
[1767022094062,0.88381025,2946.5,2944.5,2.10595264]
[1767022094268,40.8,2947.0,2944.5,1.93596264]
[1767022094765,40.8,2947.0,2944.7,0.16997]
[1767022095068,0.16984,2947.0,2944.7,0.16997]
[1767022095267,0.16985,2946.9,2944.7,0.16997]
[1767022095464,0.16985,2946.8,2945.5,0.00509761]
[1767022095856,0.0050976,2946.4,2944.5,0.00370086]
[1767022096056,0.0050976,2946.4,2944.6,3.935]
[1767022096362,0.0050976,2946.4,2944.7,4.681]
[1767022096759,0.16991,2946.0,2944.5,0.00370086]
[1767022096964,0.16995,2945.2,2943.0,0.17007]
[1767022097169,0.16995,2945.2,2943.1,1.913]
[1767022097969,0.00509761,2944.4,2943.9,0.00509761]
[1767022099659,0.00509761,2944.4,2943.1,0.00268104]
[1767022101864,0.00509761,2944.4,2943.5,0.00509761]
[1767022102372,0.17509761,2944.4,2943.1,0.00268104]
[1767022102570,0.17509761,2944.4,2942.7,4.679]
[1767022103264,0.17509761,2944.4,2942.3,4.679]
[1767022103463,0.17509761,2944.4,2942.3,4.68154388]
[1767022104271,40.8,2944.3,2943.1,0.00339846]
[1767022105068,40.8,2944.3,2942.3,4.68154388]
[1767022105278,1.93596264,2944.2,2942.3,0.00254388]
[1767022106472,0.17004,2943.7,2942.3,0.00254388]
[1767022108982,0.17004,2943.6,2942.3,0.00254388]
[1767022109172,1.93596264,2943.7,2942.1,0.74253286]
[1767022109478,0.17006,2943.3,2942.1,0.07283286]
[1767022109677,40.8,2943.2,2942.1,3.286e-05]
[1767022110376,40.97006,2943.2,2942.1,3.286e-05]
[1767022110778,40.97006,2943.2,2942.1,0.00437027]
[1767022111371,0.17008,2942.9,2940.9,0.17019]
[1767022111676,0.00509761,2942.2,2940.6,15.65067218]
[1767022111978,0.00509761,2942.2,2940.7,0.27816821]
[1767022112379,0.00867654,2942.2,2940.8,0.12385633]
[1767022114280,0.00867654,2942.2,2940.8,0.00271222]
[1767022114472,0.00867654,2942.2,2940.9,4.686]
[1767022116376,0.00867654,2942.2,2940.8,0.00271222]
[1767022116675,0.17879654,2942.2,2940.8,0.00271222]
[1767022122585,0.17013,2942.1,2940.9,4.702]
[1767022126382,0.17013,2942.1,2940.8,0.00271222]
[1767022126678,0.00867654,2942.2,2940.8,4.71171222]
[1767022134311,0.00867654,2942.2,2940.9,4.725]
[1767022134510,0.00867654,2942.2,2941.0,4.726]
[1767022135711,0.00867654,2942.2,2940.8,0.00271222]
[1767022136007,0.00867654,2942.2,2940.8,1.222e-05]
[1767022137409,0.17014,2941.9,2940.8,1.222e-05]
[1767022138407,40.8,2942.1,2940.8,1.222e-05]
[1767022140015,0.17016,2941.6,2940.4,1.41]
[1767022140214,0.17016,2941.6,2939.5,0.17027]
[1767022140405,0.17016,2941.6,2939.6,4.656]
[1767022140602,0.17016,2941.6,2939.5,0.17027]
[1767022140603,0.17016,2941.6,2939.7,4.727]
[1767022141308,0.9574454,2941.5,2939.7,0.00364232]
[1767022141506,0.17018,2941.2,2939.7,0.00364232]
[1767022142614,0.17018,2941.2,2939.8,4.727]
[1767022143011,47.5919326,2942.1,2939.7,0.00364232]
[1767022143012,0.17019,2941.0,2939.7,0.00364232]
[1767022143218,0.00509761,2940.6,2939.7,0.00364232]
[1767022150620,0.17018,2941.3,2939.7,0.00364232]
[1767022151620,0.00509761,2940.8,2940.2,0.0050976]
[1767022151817,10.54514,2941.9,2940.2,0.0050976]
[1767022152022,0.17014,2941.9,2940.2,0.0050976]
[1767022152230,0.1701,2942.6,2940.3,4.54014546]
[1767022152924,0.00509761,2941.5,2940.3,4.54014546]
[1767022153132,0.1701,2942.6,2940.4,0.17022]
[1767022153516,0.1701,2942.6,2940.5,4.69020607]
[1767022153923,0.1701,2942.6,2940.5,0.17021]
[1767022155228,0.1701,2942.6,2940.6,0.17021]
[1767022156120,0.00509761,2941.7,2940.6,0.17021]
[1767022156424,0.17006,2943.3,2941.1,0.17018]
[1767022156623,5.584,2943.9,2941.5,0.17016]
[1767022156823,40.8,2943.8,2941.5,0.17016]
[1767022157128,40.8,2943.8,2941.6,2.96]
[1767022157328,0.00339846,2943.0,2942.4,0.00509761]
[1767022157630,0.00647217,2943.0,2942.4,0.00824574]
[1767022158134,0.00647217,2943.0,2941.8,1.14]
[1767022158726,0.00647217,2943.0,2941.8,4.725]
[1767022158926,0.00647217,2943.0,2940.9,0.17019]
[1767022159132,0.00647217,2943.0,2941.7,0.00509761]
[1767022159733,0.00647217,2943.0,2941.7,4.73009761]
[1767022159934,0.00647217,2943.0,2941.7,4.72909761]
[1767022160633,0.00647217,2943.0,2941.7,0.00509761]
[1767022160833,0.17011,2942.4,2940.9,0.00347663]
[1767022162245,0.17011,2942.4,2941.4,0.00509761]
[1767022164340,40.8,2942.9,2941.4,0.00509761]
[1767022164541,0.17655217,2943.0,2941.4,0.00509761]
[1767022164741,0.17008,2942.9,2941.4,0.00509761]
[1767022165539,0.17009,2942.8,2941.4,0.00509761]
[1767022166539,0.1701,2942.6,2941.4,0.00509761]
[1767022171444,0.1701,2942.5,2940.9,0.00347663]
[1767022171738,0.17014,2941.9,2940.9,0.00347663]
[1767022173646,0.17014,2941.9,2941.1,0.00509761]
[1767022174242,0.17011,2942.5,2941.1,0.00509761]
[1767022176341,0.17011,2942.4,2941.1,0.00509761]
[1767022177748,6.331,2942.9,2941.1,0.00509761]
[1767022178252,0.1701,2942.5,2941.1,0.00509761]
[1767022183853,0.1701,2942.5,2941.2,4.721]
[1767022184053,0.17654217,2943.0,2941.2,4.721]
[1767022184254,0.17654217,2943.0,2941.1,0.00509761]
[1767022184454,0.17654217,2943.0,2941.2,4.721]
[1767022184655,0.17008,2942.9,2941.1,0.00509761]
[1767022184864,0.17008,2942.9,2941.2,4.721]
[1767022186952,0.00647217,2943.0,2941.1,0.00509761]
[1767022186953,0.17009,2942.8,2941.1,0.00509761]
[1767022187146,0.17009,2942.8,2941.1,4.72509761]
[1767022188756,0.17009,2942.7,2941.1,4.72509761]
[1767022189250,0.17009,2942.7,2941.2,4.72]
[1767022190358,0.00647217,2943.0,2941.3,1.93884255]
[1767022191353,0.00647217,2943.0,2941.3,2.10901255]
[1767022195962,0.00647217,2943.0,2941.4,4.72]
[1767022198265,0.00647217,2943.0,2941.4,4.89016]
[1767022200771,0.17009,2942.8,2941.1,0.00509761]
[1767022200960,0.17011,2942.5,2941.1,0.00509761]
[1767022201164,0.17013,2942.1,2941.1,0.00509761]
[1767022201369,0.17009,2942.8,2941.1,0.00509761]
[1767022202073,0.00647217,2943.0,2941.1,0.00509761]
[1767022202569,0.00647217,2943.0,2941.1,0.17527761]
[1767022203575,0.00647217,2943.0,2941.4,0.17016]
[1767022204362,0.00647217,2943.0,2941.8,1.93884255]
[1767022204568,0.17003,2943.8,2941.9,4.723]
[1767022204764,0.17003,2943.7,2941.8,1.93884255]
[1767022204970,0.17004,2943.5,2941.9,4.723]
[1767022205171,0.17007,2943.2,2941.4,4.21855319]
[1767022205369,7.66984255,2943.7,2941.4,4.21855319]
[1767022205570,0.1701,2942.5,2940.6,4.21855319]
[1767022205768,0.17011,2942.4,2940.6,4.21855319]
[1767022205971,0.00509761,2942.6,2940.2,4.21855319]
[1767022205972,0.17013,2942.1,2940.2,4.21855319]
[1767022206176,0.17013,2942.1,2940.6,4.723]
[1767022206468,0.17014,2941.9,2940.0,4.21855319]
[1767022206660,0.17014,2941.9,2940.3,4.723]
[1767022206866,0.17014,2941.9,2940.8,0.00509761]
[1767022207467,0.17014,2941.9,2940.8,0.0089541]
[1767022210075,0.17014,2941.9,2939.9,0.17025]
[1767022210268,0.17014,2941.9,2940.0,4.722]
[1767022211065,0.17014,2941.9,2940.7,0.00339846]
[1767022213373,46.55,2942.5,2940.7,0.00339846]
[1767022213571,1.93884255,2942.1,2940.0,0.00430745]
[1767022213773,0.17011,2942.4,2940.0,0.00430745]
[1767022214076,0.17015,2941.8,2940.0,1.94315]
[1767022215075,0.17011,2942.3,2940.1,0.17024]
[1767022215576,0.17011,2942.3,2940.2,4.34567671]
[1767022216071,0.17011,2942.3,2940.3,0.17023]
[1767022216274,0.17011,2942.3,2940.5,2.10906255]
[1767022216665,0.17011,2942.3,2940.6,4.722]
[1767022216870,0.17011,2942.3,2940.5,0.17022]
[1767022217076,0.17011,2942.3,2940.6,4.722]
[1767022220481,0.17011,2942.3,2940.6,4.89221]
[1767022221575,0.00509761,2942.6,2940.7,0.1702]
[1767022221978,0.00509761,2942.6,2941.0,2.10903255]
[1767022222178,0.00509761,2942.6,2941.1,0.17018]
[1767022222387,0.00509761,2942.6,2940.6,8.94055319]
[1767022222388,0.00282556,2943.2,2941.5,1.93884255]
[1767022222683,0.00282556,2943.2,2941.6,4.722]
[1767022223187,0.00282556,2943.2,2941.7,4.722]
[1767022223480,0.00509761,2942.7,2942.2,0.0050976]
[1767022223667,0.00509761,2942.7,2942.2,0.00847267]
[1767022224474,0.00282556,2943.2,2942.2,0.00847267]
[1767022225086,0.17007,2943.1,2941.1,4.21855319]
[1767022225287,0.17007,2943.1,2941.2,4.721]
[1767022226389,0.17007,2943.1,2941.9,0.00509761]
[1767022227478,0.00509761,2942.8,2941.9,0.00509761]
[1767022228579,0.00282556,2943.2,2941.9,0.00509761]
[1767022229690,0.00509761,2942.8,2941.9,0.00509761]
[1767022229891,0.00282556,2943.2,2941.9,0.00509761]
[1767022230781,0.00509761,2942.8,2941.9,0.00509761]
[1767022231091,0.00509761,2942.8,2942.0,4.72]
[1767022231478,0.00282556,2943.2,2942.0,4.72]
[1767022232381,0.00509761,2942.9,2942.0,4.72]
[1767022232580,0.00282556,2943.2,2942.0,4.72]
[1767022232881,10.375,2944.1,2942.2,0.17012]
[1767022233078,0.16997,2944.9,2942.6,1.93884255]
[1767022233292,0.16998,2944.6,2942.6,2.10893255]
[1767022233789,0.00339845,2943.9,2943.3,0.00509761]
[1767022233995,0.00723868,2943.9,2943.3,0.00840984]
[1767022235392,0.16995,2945.2,2943.3,6.00840984]
[1767022235690,0.16995,2945.2,2943.3,0.00840984]
[1767022236387,0.17332042,2945.2,2943.3,0.00840984]
[1767022237092,0.16995,2945.1,2943.4,4.273]
[1767022237287,0.16996,2945.0,2943.4,4.273]
[1767022237687,0.16996,2944.9,2943.3,0.00840984]
[1767022237888,0.16996,2944.9,2943.3,4.72640984]
[1767022238484,0.16996,2944.9,2943.3,0.00840984]
[1767022238788,0.00337042,2945.2,2943.3,0.00840984]
[1767022238994,0.16999,2944.5,2943.3,0.00840984]
[1767022239682,0.17,2944.4,2943.3,0.00840984]
[1767022241488,0.16997,2944.9,2943.3,0.00840984]
[1767022244896,0.16997,2944.8,2943.3,0.00840984]
[1767022247496,0.00337042,2945.2,2943.3,0.00840984]
[1767022247897,0.17332042,2945.2,2943.3,0.00840984]
[1767022248197,0.16995,2945.1,2943.4,2.616]
[1767022248792,0.16997,2944.8,2943.3,0.00840984]
[1767022250999,0.16997,2944.8,2943.3,4.72240984]
[1767022251495,0.00337042,2945.2,2943.3,0.00840984]
[1767022251693,0.17,2944.3,2943.3,0.00840984]
[1767022252197,0.17001,2944.2,2943.3,9.84e-06]
[1767022253397,0.0050976,2944.0,2943.5,0.00509761]
[1767022254604,0.0050976,2944.0,2943.3,9.84e-06]
[1767022257705,0.0050976,2944.0,2943.4,0.00509761]
[1767022259602,0.0050976,2944.0,2943.3,9.84e-06]
[1767022260604,0.0050976,2944.0,2943.4,0.00509761]
[1767022260805,0.0050976,2944.0,2943.3,9.84e-06]
[1767022261005,0.1751176,2944.0,2942.3,0.17011]
[1767022261200,0.0050976,2944.0,2941.6,0.17015]
[1767022261405,0.17005,2943.4,2941.6,0.17015]
[1767022261799,0.17005,2943.4,2942.2,0.00339846]
[1767022262002,0.17005,2943.4,2942.2,0.00713919]
[1767022262301,0.17007,2943.2,2942.2,0.00713919]
[1767022262502,0.17008,2942.9,2941.0,0.17019]
[1767022262707,40.8,2943.9,2940.8,4.712]
[1767022262900,0.17009,2942.8,2940.8,4.712]
[1767022263512,0.00509761,2942.1,2940.8,4.71562309]
[1767022264007,0.00509761,2942.1,2940.8,0.00362309]